bitfinex-derivatives/quotes_SOLF0:USTF0_20250101
["timestamp","ask_amount","ask_price","bid_price","bid_amount"]
[1735699597591,11.04961984,191.44,191.39,2.618]
[1735699597790,11.04961984,191.44,191.37,8.43221984]
[1735699598491,11.04961984,191.44,191.4,2.6178]
[1735699599185,11.04921984,191.46,191.43,2.6174]
[1735699600999,8.43221984,191.46,191.43,2.6174]
[1735699602693,11.04921984,191.46,191.43,2.6174]
[1735699610499,2.617,191.46,191.43,2.6174]
[1735699611105,2.617,191.46,191.42,2.6175]
[1735699612907,8.43221984,191.47,191.42,2.6175]
[1735699613205,2.6172,191.45,191.42,2.6175]
[1735699614602,8.78793124,191.48,191.45,2.617]
[1735699614808,23.07369474,191.5,191.43,8.43221984]
[1735699615009,3.92812274,191.49,191.43,8.43221984]
[1735699615321,2.6166,191.49,191.45,2.617]
[1735699618703,2.6166,191.49,191.43,8.43221984]
[1735699618911,2.6166,191.49,191.46,2.617]
[1735699619608,2.6171,191.46,191.43,2.6174]
[1735699619809,8.43221984,191.47,191.4,4.634]
[1735699619810,8.43221984,191.47,191.4,13.06621984]
[1735699620005,8.43221984,191.47,191.42,8.43221984]
[1735699620612,8.43221984,191.47,191.4,13.06621984]
[1735699620811,8.43221984,191.49,191.42,8.43221984]
[1735699621408,3.0,191.52,191.42,8.43221984]
[1735699621609,8.43221984,191.49,191.42,8.43221984]
[1735699622413,2.6168,191.48,191.45,2.6171]
[1735699622601,3.92710487,191.52,191.42,8.43221984]
[1735699622806,8.77553983,191.52,191.44,8.43221984]
[1735699623112,8.43221984,191.52,191.44,8.43221984]
[1735699623309,2.6164,191.51,191.44,8.43221984]
[1735699623509,8.43221984,191.5,191.44,8.43221984]
[1735699624513,11.04871984,191.5,191.46,2.6169]
[1735699624717,8.43221984,191.5,191.46,2.6169]
[1735699625206,11.04871984,191.5,191.46,2.6169]
[1735699626610,8.43221984,191.5,191.46,2.6169]
[1735699626814,2.6166,191.49,191.46,2.6169]
[1735699628019,8.43221984,191.5,191.47,2.6168]
[1735699628208,8.43221984,191.52,191.44,8.43221984]
[1735699629217,8.43221984,191.52,191.49,2.6165]
[1735699631622,11.04841984,191.52,191.49,2.6165]
[1735699632623,2.6162,191.52,191.49,2.6165]
[1735699632811,8.43221984,191.51,191.49,2.6165]
[1735699639724,12.35930386,191.51,191.49,2.6165]
[1735699641824,12.35930386,191.51,191.44,8.43221984]
[1735699642024,12.35930386,191.51,191.5,2.6165]
[1735699643533,8.43221984,191.51,191.5,2.6165]
[1735699646533,14.04831984,191.53,191.5,2.6165]
[1735699648637,17.97538802,191.53,191.5,2.6165]
[1735699649839,14.04831984,191.53,191.5,2.6165]
[1735699650536,17.97536838,191.53,191.5,2.6165]
[1735699650939,8.77879194,191.52,191.5,2.6165]
[1735699651134,12.70584048,191.52,191.5,2.6165]
[1735699651940,3.92704854,191.52,191.5,2.6164]
[1735699652230,8.77879194,191.52,191.5,2.6164]
[1735699652439,12.70584048,191.52,191.5,2.6164]
[1735699652637,12.70584048,191.52,191.51,2.6163]
[1735699653029,15.32184048,191.54,191.51,2.6163]
[1735699653227,6.54304854,191.54,191.51,2.6163]
[1735699656035,2.616,191.54,191.51,2.6163]
[1735699656436,6.54304854,191.54,191.51,2.6163]
[1735699656637,15.32433593,191.54,191.51,2.6163]
[1735699657554,11.39728739,191.54,191.51,2.6163]
[1735699657841,11.04831984,191.53,191.5,2.6164]
[1735699659641,2.6163,191.51,191.48,2.6167]
[1735699660744,8.43221984,191.53,191.45,8.43221984]
[1735699660946,2.6162,191.52,191.49,2.6165]
[1735699662244,2.6161,191.53,191.5,2.6164]
[1735699663341,2.6161,191.53,191.4,4.634]
[1735699663342,3.9265748,191.57,191.52,8.43221984]
[1735699663550,57.96488674,191.58,191.56,8.43221984]
[1735699664047,57.96488674,191.58,191.57,2.6155]
[1735699664247,55.33588674,191.58,191.57,2.6155]
[1735699664452,47.98258674,191.58,191.57,2.6155]
[1735699664845,218.38274288,191.63,191.56,8.43221984]
[1735699664846,47.98258674,191.65,191.61,2.6148]
[1735699665044,3.92474108,191.64,191.61,2.6148]
[1735699665648,14.00641984,191.67,191.61,2.6148]
[1735699666447,2.6143,191.66,191.61,2.6148]
[1735699666849,2.6143,191.66,191.6,8.43221984]
[1735699667149,10.03231984,191.68,191.6,8.43221984]
[1735699667345,1.6001,191.68,191.62,8.43221984]
[1735699667752,1.6001,191.68,191.64,2.6145]
[1735699669354,2.6141,191.67,191.62,8.43221984]
[1735699670446,2.6141,191.67,191.63,2.6146]
[1735699677149,11.04631984,191.67,191.63,2.6146]
[1735699679054,3.1218,191.71,191.63,8.43221984]
[1735699679055,8.43221984,191.71,191.63,8.43221984]
[1735699679254,8.43221984,191.71,191.65,8.43221984]
[1735699679449,8.43221984,191.71,191.67,2.614]
[1735699680259,11.04581984,191.71,191.67,2.614]
[1735699681958,2.6136,191.71,191.67,2.614]
[1735699682757,2.6136,191.71,191.65,11.37221984]
[1735699683258,2.6136,191.71,191.68,2.614]
[1735699683457,11.04561984,191.73,191.68,2.614]
[1735699683752,2.6134,191.73,191.67,8.43221984]
[1735699684160,1.85133744,191.75,191.67,8.43221984]
[1735699684161,4.46453744,191.75,191.67,8.43221984]
[1735699684460,8.43221984,191.77,191.69,8.43221984]
[1735699685459,8.43221984,191.77,191.73,2.6132]
[1735699686760,2.6129,191.76,191.72,2.6134]
[1735699687657,54.22104295,191.78,191.73,8.43221984]
[1735699688057,54.22104295,191.78,191.7,2.94]
[1735699688058,54.22104295,191.78,191.75,8.43221984]
[1735699689464,56.83364295,191.78,191.75,8.43221984]
[1735699689762,54.22104295,191.78,191.75,8.43221984]
[1735699690156,8.43221984,191.81,191.75,8.43221984]
[1735699691667,2.6125,191.79,191.75,11.04521984]
[1735699692055,2.6121,191.82,191.77,11.04481984]
[1735699692256,2.6121,191.82,191.77,8.43221984]
[1735699692765,227.35325913,192.01,191.8,8.43221984]
[1735699692966,8.43221984,191.94,191.88,8.43221984]
[1735699693161,8.43221984,191.96,191.88,11.04351984]
[1735699693366,8.43221984,191.96,191.9,8.43221984]
[1735699695460,8.43221984,191.96,191.87,2.94]
[1735699695666,4.7642,191.98,191.88,8.43221984]
[1735699695964,8.43221984,191.96,191.88,8.43221984]
[1735699696156,8.43221984,191.96,191.9,8.43221984]
[1735699697662,8.43221984,191.96,191.88,2.6112]
[1735699697868,8.43221984,191.96,191.9,8.43221984]
[1735699701462,8.43221984,191.96,191.88,11.37221984]
[1735699701860,8.43221984,191.96,191.88,13.98351984]
[1735699702568,8.43221984,191.96,191.88,11.04351984]
[1735699704062,8.43221984,191.96,191.89,2.6111]
[1735699708672,4.7642,191.98,191.92,11.04291984]
[1735699709474,1.6277,191.98,191.92,11.04291984]
[1735699712985,1.6277,191.98,191.92,8.43221984]
[1735699713287,8.43221984,191.97,191.91,2.6108]
[1735699713485,1.6277,191.98,191.91,2.6108]
[1735699713784,10.05991984,191.98,191.91,2.6108]
[1735699715885,10.05991984,191.98,191.92,2.6107]
[1735699716189,1.6277,191.98,191.92,2.6107]
[1735699718189,10.05991984,191.98,191.9,8.43221984]
[1735699718388,10.05991984,191.98,191.93,2.6106]
[1735699718798,10.05991984,191.98,191.9,8.43221984]
[1735699718991,10.05991984,191.98,191.92,2.6107]
[1735699719384,1.6277,191.98,191.92,2.6107]
[1735699720091,1.6277,191.98,191.82,2.4131]
[1735699720290,8.43221984,191.97,191.9,2.611]
[1735699720892,8.43221984,191.97,191.91,2.6108]
[1735699721091,1.6277,191.98,191.89,8.43221984]
[1735699721493,8.43221984,191.97,191.89,8.43221984]
[1735699721991,8.43221984,191.97,191.9,2.6109]
[1735699723591,1.6277,191.98,191.9,2.6109]
[1735699723793,8.43221984,191.97,191.9,2.6109]
[1735699724291,8.43221984,191.97,191.91,11.04301984]
[1735699724590,1.6277,191.98,191.91,11.04301984]
[1735699731200,5.54583919,191.98,191.91,11.04301984]
[1735699731396,8.43221984,191.97,191.87,2.6114]
[1735699731604,8.43221984,191.95,191.88,8.43221984]
[1735699732403,8.43221984,191.95,191.89,2.6111]
[1735699733906,8.43221984,191.93,191.84,2.94]
[1735699734097,8.43221984,191.93,191.86,8.43221984]
[1735699734507,8.43221984,191.91,191.86,8.43221984]
[1735699738098,8.43221984,191.91,191.83,2.6119]
[1735699738403,8.43221984,191.89,191.82,8.43221984]
[1735699738708,8.43221984,191.87,191.8,2.6123]
[1735699740307,8.43221984,191.87,191.79,11.04471984]
[1735699740907,8.43221984,191.87,191.81,11.04441984]
[1735699742712,2.94,191.88,191.82,2.6121]
[1735699743708,2.94,191.88,191.83,8.43221984]
[1735699743909,2.94,191.88,191.85,8.43221984]
[1735699746114,4.531,191.9,191.85,11.04391984]
[1735699746313,8.44913919,191.9,191.85,11.04391984]
[1735699746811,4.531,191.9,191.85,11.04391984]
[1735699748219,4.531,191.9,191.84,2.6118]
[1735699748419,8.43221984,191.89,191.84,2.6118]
[1735699751218,8.43221984,191.89,191.83,11.04411984]
[1735699751514,8.43221984,191.89,191.78,2.94]
[1735699751722,8.43221984,191.89,191.81,8.43221984]
[1735699752519,8.43221984,191.89,191.78,2.94]
[1735699752718,8.43221984,191.87,191.77,1.5684]
[1735699752916,8.43221984,191.87,191.79,8.43221984]
[1735699753119,8.43221984,191.87,191.81,2.6122]
[1735699755722,8.43221984,191.87,191.79,8.43221984]
[1735699756017,8.43221984,191.87,191.8,2.6123]
[1735699762919,8.43221984,191.87,191.79,8.43221984]
[1735699763120,8.43221984,191.85,191.79,8.43221984]
[1735699763426,2.94,191.84,191.79,8.43221984]
[1735699764323,2.94,191.84,191.77,8.43221984]
[1735699764524,8.43221984,191.83,191.77,11.04491984]
[1735699765521,8.43221984,191.83,191.76,2.6129]
[1735699765718,10.01671984,191.83,191.75,8.43221984]
[1735699766323,10.01671984,191.83,191.75,11.04511984]
[1735699767422,8.43221984,191.77,191.71,2.6135]
[1735699767623,8.43221984,191.77,191.66,2.3753]
[1735699767624,11.37221984,191.77,191.7,8.43221984]
[1735699768524,2.94,191.77,191.72,8.43221984]
[1735699768718,2.94,191.8,191.74,8.43221984]
[1735699768921,2.94,191.8,191.76,11.04501984]
[1735699769125,2.94,191.81,191.76,8.43221984]
[1735699769422,2.94,191.81,191.79,2.6125]
[1735699770022,1.5845,191.83,191.78,8.43221984]
[1735699770317,4.5245,191.83,191.8,2.6124]
[1735699771924,4.5245,191.83,191.79,2.6125]
[1735699772428,5.53240012,191.87,191.79,2.6125]
[1735699772429,3.92060012,191.87,191.79,2.6125]
[1735699772638,8.43221984,191.84,191.79,2.6125]
[1735699773427,8.43221984,191.84,191.73,1.4822]
[1735699773632,8.43221984,191.84,191.8,2.6123]
[1735699774328,2.94,191.85,191.82,2.6121]
[1735699774531,11.37221984,191.86,191.82,2.6121]
[1735699778929,11.37221984,191.86,191.81,2.6121]
[1735699780841,8.43221984,191.84,191.75,8.43221984]
[1735699782748,8.43221984,191.84,191.78,2.6125]
[1735699785050,8.43221984,191.84,191.79,2.6125]
[1735699785252,8.43221984,191.84,191.77,8.43221984]
[1735699785951,8.43221984,191.84,191.81,2.6122]
[1735699796654,8.43221984,191.82,191.73,1.4822]
[1735699796859,8.43221984,191.8,191.73,1.4822]
[1735699797481,2.94,191.81,191.74,8.43221984]
[1735699797758,2.94,191.81,191.77,2.613]
[1735699799556,2.94,191.81,191.76,2.6132]
[1735699799756,8.43221984,191.78,191.71,8.43221984]
[1735699800164,8.43221984,191.78,191.73,2.6137]
[1735699803264,8.43221984,191.78,191.71,8.43221984]
[1735699803466,8.43221984,191.76,191.69,8.43221984]
[1735699803664,8.43221984,191.74,191.69,8.43221984]
[1735699804459,8.43221984,191.74,191.7,2.614]
[1735699804962,8.43221984,191.72,191.67,39.88461733]
[1735699805158,8.43221984,191.72,191.64,1.62242988]
[1735699805364,8.43221984,191.7,191.64,1.62242988]
[1735699805562,11.37221984,191.7,191.64,1.62242988]
[1735699805758,11.37221984,191.7,191.64,4.23732988]
[1735699805956,11.37221984,191.7,191.64,1.62242988]
[1735699806667,13.98631984,191.7,191.65,2.6147]
[1735699806867,11.37221984,191.7,191.64,10.05464972]
[1735699808468,11.37221984,191.7,191.67,2.6144]
[1735699808665,2.94,191.7,191.67,2.6144]
[1735699810069,5.5541,191.7,191.66,2.6146]
[1735699810264,8.43221984,191.69,191.66,2.6146]
[1735699811172,8.43221984,191.69,191.67,2.6144]
[1735699811372,2.94,191.79,191.67,8.43221984]
[1735699811574,8.43221984,191.77,191.69,8.43221984]
[1735699811873,8.43221984,191.77,191.74,2.6134]
[1735699814266,1.5515,191.79,191.66,2.94]
[1735699814579,8.43221984,191.81,191.75,8.43221984]
[1735699814778,8.43221984,191.81,191.8,2.6127]
[1735699815068,8.43221984,191.83,191.77,8.43221984]
[1735699816375,8.43221984,191.83,191.8,2.6126]
[1735699820174,8.43221984,191.81,191.76,2.6132]
[1735699820368,8.43221984,191.79,191.73,9.93691984]
[1735699821073,8.43221984,191.79,191.75,2.6132]
[1735699824580,8.43221984,191.79,191.75,2.6133]
[1735699824879,8.43221984,191.79,191.71,8.43221984]
[1735699825473,8.43221984,191.79,191.73,8.43221984]
[1735699825675,2.94,191.8,191.73,8.43221984]
[1735699826182,2.94,191.8,191.76,2.6131]
[1735699826880,2.96,191.83,191.77,8.43221984]
[1735699827881,2.96,191.83,191.8,2.6126]
[1735699831987,3.9206756,191.88,191.8,2.6126]
[1735699832284,8.43221984,191.85,191.8,2.6126]
[1735699838595,8.43221984,191.83,191.8,2.6126]
[1735699852497,8.43221984,191.83,191.76,8.43221984]
[1735699852701,6.8606756,191.87,191.8,8.43221984]
[1735699852999,3.9206756,191.88,191.86,8.43221984]
[1735699853303,87.14291997,191.9,191.89,2.6116]
[1735699854203,11.37221984,191.94,191.86,8.43221984]
[1735699854605,15.29091386,191.94,191.86,8.43221984]
[1735699854801,11.37221984,191.94,191.86,8.43221984]
[1735699855501,11.37221984,191.94,191.9,2.6114]
[1735699857103,8.43221984,191.92,191.86,8.43221984]
[1735699857304,8.43221984,191.9,191.82,8.43221984]
[1735699858109,8.43221984,191.9,191.85,2.612]
[1735699860108,8.43221984,191.88,191.82,8.43221984]
[1735699860399,8.43221984,191.88,191.83,2.6123]
[1735699860400,11.37221984,191.88,191.83,2.6123]
[1735699862102,8.43221984,191.86,191.82,2.6125]
[1735699865905,8.43221984,191.84,191.77,8.43221984]
[1735699867302,8.43221984,191.84,191.79,2.6129]
[1735699868620,8.43221984,191.84,191.78,2.613]
[1735699868825,8.43221984,191.82,191.75,8.43221984]
[1735699869021,11.37221984,191.82,191.75,8.43221984]
[1735699869321,5.54749559,191.86,191.77,8.43221984]
[1735699869522,1.5505,191.87,191.83,8.43221984]
[1735699869723,2.94,191.88,191.83,8.43221984]
[1735699869914,2.94,191.88,191.87,2.6118]
[1735699870116,3.91869559,191.89,191.87,2.6118]
[1735699870316,90.08291997,191.9,191.87,2.6118]
[1735699870622,90.08291997,191.9,191.83,8.43221984]
[1735699870817,2.94,191.9,191.86,2.612]
[1735699876127,8.43221984,191.91,191.86,2.612]
[1735699876332,11.37221984,191.91,191.86,2.612]
[1735699879533,2.36679482,191.92,191.84,8.43221984]
[1735699879734,2.36679482,191.92,191.86,8.43221984]
[1735699883335,2.36679482,191.92,191.88,2.6116]
[1735699883530,2.36679482,191.92,191.88,8.43221984]
[1735699883737,8.43221984,191.96,191.88,8.43221984]
[1735699884537,8.43221984,191.96,191.92,2.6111]
[1735699886036,8.43221984,191.96,191.88,8.43221984]
[1735699886638,8.43221984,191.96,191.92,2.6111]
[1735699889635,87.14291997,192.03,191.94,8.43221984]
[1735699889831,3.91790955,192.02,191.98,2.6103]
[1735699890134,95.57513981,192.03,191.96,8.43221984]
[1735699891038,95.57513981,192.03,192.0,2.61]
[1735699891247,4.5393,192.05,191.98,8.43221984]
[1735699891742,8.43221984,192.04,191.94,1.5812]
[1735699891942,8.43221984,192.0,191.93,13.00911984]
[1735699892333,8.43221984,191.98,191.93,1.5969]
[1735699892738,8.43221984,191.98,191.95,2.6106]
[1735699893646,8.43221984,191.98,191.88,1.5812]
[1735699893943,8.43221984,191.96,191.92,2.6111]
[1735699894639,8.43221984,191.96,191.89,8.43221984]
[1735699894938,8.43221984,191.96,191.93,2.611]
[1735699896044,8.43221984,191.96,191.91,2.6112]
[1735699898442,8.43221984,191.96,191.88,8.43221984]
[1735699898649,8.43221984,191.96,191.9,2.6114]
[1735699899050,8.43221984,191.96,191.88,8.43221984]
[1735699899246,3.91847876,191.99,191.86,4.49750214]
[1735699899456,10.00401984,192.03,191.95,8.43221984]
[1735699899749,16.9024986,192.03,191.97,8.43221984]
[1735699900151,10.00401984,192.03,191.97,8.43221984]
[1735699900548,10.00401984,192.03,191.98,2.6103]
[1735699901149,12.98401984,192.03,191.98,2.6103]
[1735699902048,12.98401984,192.03,191.93,1.539]
[1735699902049,8.43221984,192.01,191.96,2.6105]
[1735699904255,8.43221984,192.01,191.93,9.97121984]
[1735699904447,8.43221984,192.01,191.95,2.6107]
[1735699905951,4.5518,192.03,191.95,2.6107]
[1735699906150,8.43221984,192.01,191.95,2.6107]
[1735699906951,4.5518,192.03,191.95,2.6107]
[1735699907158,8.43221984,192.0,191.95,2.6107]
[1735699907661,4.5518,192.03,191.97,2.6105]
[1735699907956,8.43221984,192.02,191.97,2.6105]
[1735699908655,8.43221984,192.02,191.95,8.43221984]
[1735699908855,11.41221984,192.02,191.95,8.43221984]
[1735699909258,11.41221984,192.02,191.98,2.6103]
[1735699911253,11.41221984,192.02,191.97,2.6104]
[1735699911453,8.43221984,192.0,191.97,2.6104]
[1735699912059,8.43221984,192.0,191.93,8.43221984]
[1735699912259,8.43221984,192.0,191.88,1.4696]
[1735699912260,8.43221984,192.0,191.91,8.43221984]
[1735699912653,8.43221984,192.0,191.94,2.6108]
[1735699913956,8.43221984,191.98,191.94,2.6108]
[1735699917165,4.5718,192.03,191.95,8.43221984]
[1735699917361,8.43221984,192.02,191.95,8.43221984]
[1735699918162,8.43221984,192.02,191.98,2.6103]
[1735699918563,8.43221984,192.02,191.95,8.43221984]
[1735699918770,8.43221984,192.02,192.0,2.6101]
[1735699920064,4.5718,192.03,191.95,8.43221984]
[1735699920268,8.43221984,192.01,191.97,2.6105]
[1735699923272,8.43221984,191.99,191.93,8.43221984]
[1735699923566,8.43221984,191.99,191.91,8.43221984]
[1735699923871,8.43221984,191.97,191.91,8.43221984]
[1735699924070,4.5718,192.03,191.91,8.43221984]
[1735699924262,4.5718,192.03,191.88,6.0142]
[1735699924263,13.00401984,192.03,191.95,8.43221984]
[1735699924469,100.14693981,192.03,191.95,8.43221984]
[1735699924668,3.91711836,192.02,191.95,8.43221984]
[1735699924871,3.91711836,192.02,191.97,2.6104]
[1735699926062,13.00401984,192.03,191.97,2.6104]
[1735699926467,16.9211382,192.03,191.97,2.6104]
[1735699926668,3.91711836,192.02,191.99,2.6102]
[1735699927171,13.00401984,192.03,191.99,2.6102]
[1735699928574,3.91711836,192.05,192.01,2.6099]
[1735699928770,8.43221984,192.04,192.01,2.6099]
[1735699929165,5.44893433,192.06,192.01,2.6099]
[1735699929370,8.43221984,192.04,192.01,2.6099]
[1735699929973,3.0,192.06,192.01,2.6099]
[1735699930174,8.43221984,192.05,192.01,2.6099]
[1735699931472,8.43221984,192.05,192.0,2.6101]
[1735699932176,8.43221984,192.06,192.0,2.6101]
[1735699933967,3.91711836,192.08,192.03,8.43221984]
[1735699934368,105.48091074,192.07,192.05,2.6094]
[1735699935079,105.48091074,192.1,192.05,2.6094]
[1735699935373,3.91583412,192.09,192.05,2.6094]
[1735699936268,15.34805396,192.11,192.05,2.6094]
[1735699936467,12.34805396,192.11,192.05,2.6094]
[1735699937078,8.43221984,192.09,192.03,8.43221984]
[1735699937680,8.43221984,192.09,192.04,2.6095]
[1735699939180,3.91583412,192.11,192.05,8.43221984]
[1735699939378,8.43221984,192.1,192.03,8.43221984]
[1735699939681,15.34805396,192.12,192.05,8.43221984]
[1735699940081,15.34805396,192.12,192.07,2.6091]
[1735699940377,8.43221984,192.11,192.07,2.6091]
[1735699940778,6.91583412,192.12,192.07,2.6091]
[1735699941076,6.91583412,192.12,192.05,8.43221984]
[1735699941077,3.91583412,192.12,192.05,8.43221984]
[1735699941282,12.34805396,192.12,192.09,2.6088]
[1735699941780,3.91583412,192.12,192.09,2.6088]
[1735699941981,12.34805396,192.12,192.09,2.6088]
[1735699942482,8.49423412,192.14,192.09,2.6088]
[1735699942683,8.43221984,192.12,192.09,2.6088]
[1735699943285,8.43221984,192.12,192.05,8.43221984]
[1735699943480,8.43221984,192.12,192.07,2.6091]
[1735699943987,8.43221984,192.12,192.05,8.43221984]
[1735699944692,8.43221984,192.12,192.08,2.6089]
[1735699946683,10.01061984,192.14,192.09,2.6089]
[1735699947283,10.01061984,192.14,192.08,2.609]
[1735699948387,8.43221984,192.12,192.05,8.43221984]
[1735699948587,8.43221984,192.12,192.06,2.6093]
[1735699951887,8.43221984,192.12,192.08,2.609]
[1735699952992,8.43221984,192.12,192.05,8.43221984]
[1735699953188,8.43221984,192.12,192.07,2.6091]
[1735699953489,1.5784,192.14,192.07,8.43221984]
[1735699954591,1.5784,192.14,192.08,2.609]
[1735699955988,3.91583412,192.15,192.07,8.43221984]
[1735699956189,3.91583412,192.15,192.11,2.6085]
[1735699956788,12.34805396,192.16,192.11,2.6085]
[1735699958095,8.43221984,192.16,192.11,2.6085]
[1735699958294,8.43221984,192.16,192.1,2.6087]
[1735699958696,8.43221984,192.16,192.09,8.43221984]
[1735699958894,8.43221984,192.16,192.09,11.04111984]
[1735699961385,8.43221984,192.16,192.09,8.43221984]
[1735699961584,8.43221984,192.16,192.08,2.609]
[1735699963196,3.14,192.17,192.09,8.43221984]
[1735699963399,3.14,192.17,192.09,11.04101984]
[1735699963593,11.57221984,192.17,192.09,11.04101984]
[1735699965892,11.57221984,192.17,192.09,8.43221984]
[1735699966096,11.57221984,192.17,192.1,2.6088]
[1735699966394,93.44658494,192.2,192.1,2.6088]
[1735699966595,8.43221984,192.17,192.1,2.6088]
[1735699967695,8.43221984,192.17,192.09,8.43221984]
[1735699967900,8.43221984,192.17,192.12,2.6085]
[1735699969800,8.43221984,192.17,192.11,8.43221984]
[1735699969801,8.43221984,192.17,192.08,3.14]
[1735699969998,8.43221984,192.17,192.08,11.57221984]
[1735699970704,8.43221984,192.17,192.1,2.6087]
[1735699971599,8.43221984,192.17,192.09,2.6089]
[1735699972504,8.43221984,192.13,192.05,37.48891924]
[1735699972706,8.43221984,192.13,192.05,45.92113908]
[1735699973299,8.43221984,192.13,192.06,2.6093]
[1735699976606,8.43221984,192.13,192.05,45.92113908]
[1735699976813,8.43221984,192.07,191.96,0.8982]
[1735699977001,8.43221984,192.07,192.0,8.43221984]
[1735699978508,8.43221984,192.07,192.01,2.6099]
[1735699978809,8.43221984,192.07,192.0,8.43221984]
[1735699979712,9.94901984,192.07,192.0,8.43221984]
[1735699980411,9.94901984,192.07,191.96,1.4722]
[1735699980711,8.43221984,192.05,191.96,1.4722]
[1735699980912,8.43221984,192.05,191.98,9.95545374]
[1735699981206,4.581,192.07,192.0,8.43221984]
[1735699981411,13.01321984,192.07,192.0,8.43221984]
[1735699982114,16.92905396,192.07,192.0,8.43221984]
[1735699982911,16.92905396,192.07,192.0,11.04241984]
[1735699985920,8.43221984,192.05,192.0,2.6102]
[1735699987021,8.43221984,192.05,191.99,2.6103]
[1735699987225,8.43221984,192.03,191.96,8.43221984]
[1735699987526,8.49683412,192.07,191.94,8.43221984]
[1735699987527,8.43221984,192.01,191.94,8.43221984]
[1735699987716,3.12,192.0,191.94,8.43221984]
[1735699988117,3.12,192.0,191.94,11.04321984]
[1735699988720,8.43221984,191.99,191.93,2.6111]
[1735699989725,8.43221984,191.99,191.92,11.04351984]
[1735699990024,10.02691984,191.99,191.92,11.04351984]
[1735699990226,10.02691984,191.99,191.92,8.43221984]
[1735699990427,8.43221984,191.97,191.91,2.6114]
[1735699991322,8.43221984,191.97,191.9,10.06253938]
[1735699991528,8.43221984,191.97,191.92,2.6113]
[1735699992527,8.43221984,191.97,191.91,2.6114]
[1735699993426,10.02691984,191.99,191.92,8.43221984]
[1735699994221,10.02691984,191.99,191.92,11.04331984]
[1735699999933,1.5947,191.99,191.92,11.04331984]
[1735700000127,11.55221984,191.98,191.93,2.611]
[1735700005335,11.55221984,191.98,191.92,11.04321984]
[1735700006334,11.55221984,191.98,191.92,2.611]
[1735700007335,11.55221984,191.98,191.93,2.611]
[1735700007537,3.08,191.97,191.93,2.611]
[1735700009234,3.08,191.97,191.9,8.43221984]
[1735700009433,3.08,191.97,191.92,2.6111]
[1735700009838,48.31088357,192.05,191.92,8.43221984]
[1735700010137,8.43221984,192.03,191.98,2.6103]
[1735700010433,3.08,192.02,191.98,2.6103]
[1735700011334,3.08,192.02,191.96,8.43221984]
[1735700011335,3.08,192.02,191.97,2.6104]
[1735700012234,3.08,192.02,191.96,8.43221984]
[1735700012537,8.43221984,191.99,191.94,2.6108]
[1735700013539,8.43221984,191.99,191.92,8.43221984]
[1735700013733,8.43221984,191.99,191.93,2.611]
[1735700016642,8.43221984,191.99,191.94,2.6108]
[1735700018434,8.43221984,191.99,191.92,8.43221984]
[1735700018632,8.43221984,191.97,191.91,2.6111]
[1735700018838,3.08,191.96,191.91,2.6111]
[1735700021943,3.08,191.96,191.92,2.6111]
[1735700022342,3.08,191.96,191.9,8.43221984]
[1735700022541,3.08,191.96,191.91,2.6112]
[1735700024137,3.08,191.96,191.92,2.6111]
[1735700025640,3.08,191.96,191.9,8.43221984]
[1735700025945,3.08,191.96,191.91,2.6112]
[1735700026342,11.51221984,191.96,191.89,8.43221984]
[1735700026746,11.51221984,191.96,191.9,2.6114]
[1735700027944,11.51221984,191.96,191.89,8.43221984]
[1735700028145,3.08,191.96,191.92,2.6111]
[1735700028842,1.5538,191.97,191.92,2.6111]
[1735700029145,3.08,191.96,191.93,2.611]
[1735700031045,11.51221984,191.96,191.89,8.43221984]
[1735700031246,11.51221984,191.96,191.92,2.6111]
[1735700032655,11.51221984,191.96,191.89,2.6115]
[1735700032852,11.51221984,191.96,191.88,8.43221984]
[1735700033352,11.51221984,191.96,191.9,2.6113]
[1735700038649,3.08,191.96,191.92,2.6111]
[1735700038952,3.08,191.96,191.9,8.43221984]
[1735700039759,3.08,191.96,191.91,2.6112]
[1735700040053,3.08,191.96,191.9,8.43221984]
[1735700041750,9.98601984,191.97,191.92,2.611]
[1735700041955,3.02,191.96,191.92,2.611]
[1735700047756,8.43221984,191.95,191.86,88.82770575]
[1735700048060,8.43221984,191.95,191.89,2.6114]
[1735700048251,8.43221984,191.95,191.87,8.43221984]
[1735700048455,8.43221984,191.95,191.9,2.6114]
[1735700048653,8.43221984,191.93,191.86,88.82770575]
[1735700048862,8.43221984,191.93,191.86,87.22720575]